[Event "*** SCC Grand Prix: Titled Tuesday Blitz"]
[Site "Chess.com"]
[Date "2020.08.04"]
[Round "6"]
[White "Infernal_XaM"]
[Black "praveenb2002"]
[Result "1-0"]
[WhiteElo "2923"]
[BlackElo "2780"]
[TimeControl "180+1"]
[EndTime "14:49:00 PDT"]
[Termination "Infernal_XaM won by checkmate"]

1. d4 {[%clk 0:03:00.9]} 1... Nf6 {[%clk 0:02:55.5]} 2. c4 {[%clk 0:03:01.8]}
2... g6 {[%clk 0:02:55.8]} 3. Nc3 {[%clk 0:03:01.7]} 3... Bg7 {[%clk 0:02:54.6]}
4. e4 {[%clk 0:03:01.8]} 4... d6 {[%clk 0:02:54.8]} 5. Be2 {[%clk 0:03:02]} 5...
O-O {[%clk 0:02:53.5]} 6. Nf3 {[%clk 0:03:02.6]} 6... e5 {[%clk 0:02:53]} 7. O-O
{[%clk 0:03:03.2]} 7... Nc6 {[%clk 0:02:51.1]} 8. d5 {[%clk 0:03:03.1]} 8... Ne7
{[%clk 0:02:51.4]} 9. b4 {[%clk 0:03:03.6]} 9... a5 {[%clk 0:02:48.9]} 10. bxa5
{[%clk 0:03:03.6]} 10... c5 {[%clk 0:02:43.9]} 11. a4 {[%clk 0:03:00.9]} 11...
Rxa5 {[%clk 0:02:39.7]} 12. Bd2 {[%clk 0:03:00.5]} 12... Nh5 {[%clk 0:02:33.5]}
13. g3 {[%clk 0:03:00.3]} 13... h6 {[%clk 0:02:29]} 14. Re1 {[%clk 0:02:59.7]}
14... f5 {[%clk 0:02:27]} 15. exf5 {[%clk 0:02:56.9]} 15... gxf5 {[%clk
0:01:51.9]} 16. Nxe5 {[%clk 0:02:56]} 16... Nxg3 {[%clk 0:01:45.4]} 17. hxg3
{[%clk 0:02:55.8]} 17... dxe5 {[%clk 0:01:45.7]} 18. Ra3 {[%clk 0:02:42.4]}
18... Ra6 {[%clk 0:01:42.9]} 19. Nb5 {[%clk 0:02:35.1]} 19... f4 {[%clk
0:01:31.4]} 20. Bh5 {[%clk 0:02:28.6]} 20... fxg3 {[%clk 0:01:30.1]} 21. Rxg3
{[%clk 0:02:27.7]} 21... Raf6 {[%clk 0:01:25.8]} 22. Rxe5 {[%clk 0:02:16.8]}
22... Rxf2 {[%clk 0:01:19]} 23. Bxh6 {[%clk 0:02:15.6]} 23... Nf5 {[%clk
0:00:50.7]} 24. Rxf5 {[%clk 0:02:06.6]} 24... R8xf5 {[%clk 0:00:49.1]} 25. Bxg7
{[%clk 0:01:45.2]} 25... Rf1+ {[%clk 0:00:29.4]} 26. Qxf1 {[%clk 0:01:41.9]}
26... Rxf1+ {[%clk 0:00:30.3]} 27. Kxf1 {[%clk 0:01:42.2]} 27... Qh4 {[%clk
0:00:27.2]} 28. Be5+ {[%clk 0:01:41.7]} 28... Kh7 {[%clk 0:00:21.2]} 29. Bg6+
{[%clk 0:01:38.9]} 29... Kh6 {[%clk 0:00:20.9]} 30. Bd3 {[%clk 0:01:35.2]} 30...
Bh3+ {[%clk 0:00:18.7]} 31. Kf2 {[%clk 0:01:33.3]} 31... b6 {[%clk 0:00:13.3]}
32. Bg7+ {[%clk 0:01:32.7]} 32... Kh5 {[%clk 0:00:13.5]} 33. Bg6# {[%clk
0:01:32.9]} 1-0

[Event "*** SCC Grand Prix: Titled Tuesday Blitz"]
[Site "Chess.com"]
[Date "2020.08.04"]
[Round "6"]
[White "icychess54"]
[Black "Yoshikrov"]
[Result "1-0"]
[WhiteElo "2269"]
[BlackElo "2133"]
[TimeControl "180+1"]
[EndTime "14:49:02 PDT"]
[Termination "icychess54 won by resignation"]

1. c4 {[%clk 0:03:00.9]} 1... Nf6 {[%clk 0:02:59.3]} 2. Nf3 {[%clk 0:03:00.7]}
2... d5 {[%clk 0:02:59.1]} 3. e3 {[%clk 0:03:01]} 3... g6 {[%clk 0:02:58.7]} 4.
Nc3 {[%clk 0:03:01]} 4... Bg7 {[%clk 0:02:59]} 5. cxd5 {[%clk 0:03:01.4]} 5...
Nxd5 {[%clk 0:02:59.3]} 6. Bc4 {[%clk 0:03:01.9]} 6... Nxc3 {[%clk 0:02:51]} 7.
bxc3 {[%clk 0:03:00.9]} 7... O-O {[%clk 0:02:51.5]} 8. O-O {[%clk 0:03:00.2]}
8... c5 {[%clk 0:02:50.5]} 9. d4 {[%clk 0:02:59.9]} 9... cxd4 {[%clk 0:02:50.6]}
10. cxd4 {[%clk 0:02:58.9]} 10... Bg4 {[%clk 0:02:50.7]} 11. h3 {[%clk
0:02:48.2]} 11... Bf5 {[%clk 0:02:44]} 12. Re1 {[%clk 0:02:45.3]} 12... Be4
{[%clk 0:02:41.4]} 13. Nd2 {[%clk 0:02:42]} 13... Bc6 {[%clk 0:02:38.1]} 14. Bb2
{[%clk 0:02:28]} 14... e6 {[%clk 0:02:37.6]} 15. Nb3 {[%clk 0:02:19]} 15... Nd7
{[%clk 0:02:37.1]} 16. Qd2 {[%clk 0:02:16]} 16... Rc8 {[%clk 0:02:34.3]} 17. Na5
{[%clk 0:02:11.7]} 17... Be4 {[%clk 0:02:16.8]} 18. f3 {[%clk 0:02:10.2]} 18...
b6 {[%clk 0:02:15.4]} 19. fxe4 {[%clk 0:01:43.4]} 19... bxa5 {[%clk 0:02:15.2]}
20. Bb3 {[%clk 0:01:35.3]} 20... Nf6 {[%clk 0:02:05.6]} 21. e5 {[%clk 0:01:28]}
21... Nd5 {[%clk 0:02:01.3]} 22. Ba3 {[%clk 0:01:26.1]} 22... Re8 {[%clk
0:02:00.4]} 23. Ba4 {[%clk 0:01:23.8]} 23... Qg5 {[%clk 0:01:33.2]} 24. Bxe8
{[%clk 0:01:19.2]} 24... Rxe8 {[%clk 0:01:34.1]} 25. Rac1 {[%clk 0:01:16.3]}
25... Bh6 {[%clk 0:01:34]} 26. Qf2 {[%clk 0:00:55.2]} 26... Nxe3 {[%clk
0:01:29.1]} 27. Rc7 {[%clk 0:00:55.2]} 27... Nf5 {[%clk 0:01:29.1]} 28. Bc1
{[%clk 0:00:35.9]} 28... Qxc1 {[%clk 0:01:15.6]} 29. Rexc1 {[%clk 0:00:34.4]}
29... Bxc1 {[%clk 0:01:16.5]} 30. Rxc1 {[%clk 0:00:33.7]} 1-0

[Event "*** SCC Grand Prix: Titled Tuesday Blitz"]
[Site "Chess.com"]
[Date "2020.08.04"]
[Round "6"]
[White "PauloCesarCosta_sad"]
[Black "Chuchofrio1"]
[Result "1-0"]
[WhiteElo "2240"]
[BlackElo "2289"]
[TimeControl "180+1"]
[EndTime "14:49:37 PDT"]
[Termination "PauloCesarCosta_sad won by checkmate"]

1. Nf3 {[%clk 0:03:00.9]} 1... f5 {[%clk 0:02:59.9]} 2. d4 {[%clk 0:02:59.3]}
2... Nf6 {[%clk 0:03:00.2]} 3. g3 {[%clk 0:02:58.8]} 3... d6 {[%clk 0:02:58.9]}
4. Bg2 {[%clk 0:02:59.7]} 4... g6 {[%clk 0:02:59.7]} 5. O-O {[%clk 0:02:53.4]}
5... Bg7 {[%clk 0:03:00]} 6. c4 {[%clk 0:02:54.3]} 6... O-O {[%clk 0:03:00.7]}
7. Nc3 {[%clk 0:02:54.3]} 7... Nc6 {[%clk 0:03:01.3]} 8. d5 {[%clk 0:02:47.7]}
8... Ne5 {[%clk 0:03:00.2]} 9. Nxe5 {[%clk 0:02:47.7]} 9... dxe5 {[%clk
0:03:01.1]} 10. Bg5 {[%clk 0:02:47.4]} 10... e4 {[%clk 0:02:59.9]} 11. e3 {[%clk
0:02:43.6]} 11... e6 {[%clk 0:02:58.8]} 12. dxe6 {[%clk 0:02:38.3]} 12... Bxe6
{[%clk 0:02:59.7]} 13. b3 {[%clk 0:02:25.4]} 13... h6 {[%clk 0:02:57.1]} 14.
Bxf6 {[%clk 0:02:20.4]} 14... Qxf6 {[%clk 0:02:58]} 15. Rc1 {[%clk 0:02:19.9]}
15... Rad8 {[%clk 0:02:57.2]} 16. Qe2 {[%clk 0:02:02.2]} 16... Rd3 {[%clk
0:02:56.8]} 17. Nb5 {[%clk 0:01:55]} 17... c6 {[%clk 0:02:57]} 18. Nd4 {[%clk
0:01:54.7]} 18... Bf7 {[%clk 0:02:54.8]} 19. Rfd1 {[%clk 0:01:52.6]} 19... Rxd1+
{[%clk 0:02:54.3]} 20. Rxd1 {[%clk 0:01:52]} 20... Rd8 {[%clk 0:02:54.4]} 21.
Bf1 {[%clk 0:01:44.4]} 21... Qd6 {[%clk 0:02:54.1]} 22. c5 {[%clk 0:01:15.6]}
22... Qe7 {[%clk 0:02:42]} 23. b4 {[%clk 0:01:09.1]} 23... g5 {[%clk 0:02:39.8]}
24. Qc2 {[%clk 0:01:01.5]} 24... f4 {[%clk 0:02:38.4]} 25. Bc4 {[%clk
0:00:59.4]} 25... Bxd4 {[%clk 0:02:32.6]} 26. Rxd4 {[%clk 0:00:58.6]} 26... Rxd4
{[%clk 0:02:31.2]} 27. Bxf7+ {[%clk 0:00:49]} 27... Kxf7 {[%clk 0:02:30]} 28.
exd4 {[%clk 0:00:48.7]} 28... Qe6 {[%clk 0:02:28.2]} 29. a3 {[%clk 0:00:43.2]}
29... f3 {[%clk 0:02:26]} 30. Kf1 {[%clk 0:00:32.3]} 30... Qh3+ {[%clk
0:02:25.5]} 31. Ke1 {[%clk 0:00:32.2]} 31... Qxh2 {[%clk 0:02:23.3]} 32. Qxe4
{[%clk 0:00:20.6]} 32... Qg1+ {[%clk 0:02:23.5]} 33. Kd2 {[%clk 0:00:19.7]}
33... Qxf2+ {[%clk 0:02:24.4]} 34. Kd1 {[%clk 0:00:15.5]} 34... Qe2+ {[%clk
0:02:18.3]} 35. Qxe2 {[%clk 0:00:15.1]} 35... fxe2+ {[%clk 0:02:19.2]} 36. Kxe2
{[%clk 0:00:16]} 36... Ke6 {[%clk 0:02:20.1]} 37. g4 {[%clk 0:00:11.2]} 37...
Kd5 {[%clk 0:02:20.1]} 38. Kd3 {[%clk 0:00:09.7]} 38... b6 {[%clk 0:02:20.5]}
39. Ke3 {[%clk 0:00:04.5]} 39... b5 {[%clk 0:02:19.2]} 40. Kd3 {[%clk
0:00:03.9]} 40... a6 {[%clk 0:02:18.6]} 41. Ke3 {[%clk 0:00:04.1]} 41... Kc4
{[%clk 0:02:19.1]} 42. Ke4 {[%clk 0:00:03.9]} 42... Kb3 {[%clk 0:02:13.3]} 43.
d5 {[%clk 0:00:04.1]} 43... cxd5+ {[%clk 0:02:13.1]} 44. Kxd5 {[%clk 0:00:05]}
44... Kxa3 {[%clk 0:02:13.9]} 45. c6 {[%clk 0:00:05.3]} 45... Kxb4 {[%clk
0:02:14.8]} 46. c7 {[%clk 0:00:06.2]} 46... a5 {[%clk 0:02:15.7]} 47. c8=Q
{[%clk 0:00:07.1]} 47... a4 {[%clk 0:02:16.6]} 48. Qc5+ {[%clk 0:00:07.1]} 48...
Ka5 {[%clk 0:02:16.4]} 49. Qa7+ {[%clk 0:00:06.7]} 49... Kb4 {[%clk 0:02:16.7]}
50. Qc5+ {[%clk 0:00:07.1]} 50... Ka5 {[%clk 0:02:17.1]} 51. Qa7+ {[%clk
0:00:05.5]} 51... Kb4 {[%clk 0:02:16.7]} 52. Kd4 {[%clk 0:00:05.6]} 52... Kb3
{[%clk 0:02:16.3]} 53. Qc5 {[%clk 0:00:05.8]} 53... b4 {[%clk 0:02:16.7]} 54.
Qc4+ {[%clk 0:00:06]} 54... Ka3 {[%clk 0:02:17.2]} 55. Kd3 {[%clk 0:00:05]}
55... b3 {[%clk 0:02:16.4]} 56. Kc3 {[%clk 0:00:02.8]} 56... Ka2 {[%clk
0:02:12.7]} 57. Qxa4+ {[%clk 0:00:02.5]} 57... Kb1 {[%clk 0:02:13.2]} 58. Qxb3+
{[%clk 0:00:03]} 58... Kc1 {[%clk 0:02:14]} 59. Qc2# {[%clk 0:00:03]} 1-0

[Event "*** SCC Grand Prix: Titled Tuesday Blitz"]
[Site "Chess.com"]
[Date "2020.08.04"]
[Round "6"]
[White "JMatias"]
[Black "Resignify"]
[Result "1-0"]
[WhiteElo "2400"]
[BlackElo "2204"]
[TimeControl "180+1"]
[EndTime "14:49:38 PDT"]
[Termination "JMatias won on time"]

1. e4 {[%clk 0:03:00.9]} 1... d6 {[%clk 0:02:58.4]} 2. d4 {[%clk 0:02:59.6]}
2... Nf6 {[%clk 0:02:58.2]} 3. Nc3 {[%clk 0:02:57.8]} 3... g6 {[%clk 0:02:58]}
4. Bf4 {[%clk 0:02:55]} 4... c6 {[%clk 0:02:55.5]} 5. Qd2 {[%clk 0:02:51.7]}
5... Qa5 {[%clk 0:02:51.3]} 6. Bd3 {[%clk 0:02:47.4]} 6... e5 {[%clk 0:02:43.3]}
7. dxe5 {[%clk 0:02:37.4]} 7... dxe5 {[%clk 0:02:42.9]} 8. Bg5 {[%clk
0:02:37.5]} 8... Nbd7 {[%clk 0:02:33.3]} 9. Nge2 {[%clk 0:02:28.8]} 9... h6
{[%clk 0:02:24.1]} 10. Bh4 {[%clk 0:02:21.3]} 10... g5 {[%clk 0:02:15]} 11. Bg3
{[%clk 0:02:18]} 11... Nh5 {[%clk 0:02:08.1]} 12. O-O-O {[%clk 0:02:16.3]} 12...
Nf4 {[%clk 0:01:58.8]} 13. Rhg1 {[%clk 0:01:56.3]} 13... Nc5 {[%clk 0:01:38]}
14. Bc4 {[%clk 0:01:38.7]} 14... b5 {[%clk 0:00:51.8]} 15. Bb3 {[%clk
0:01:36.1]} 15... Nxb3+ {[%clk 0:00:46.8]} 16. cxb3 {[%clk 0:01:29.4]} 16... Be6
{[%clk 0:00:26]} 17. Kb1 {[%clk 0:01:18.9]} 17... Bb4 {[%clk 0:00:23.6]} 18. Qe3
{[%clk 0:01:18.3]} 18... O-O {[%clk 0:00:19.4]} 19. h4 {[%clk 0:01:17.2]} 19...
Nxe2 {[%clk 0:00:13.7]} 20. Nxe2 {[%clk 0:01:14.3]} 20... f6 {[%clk 0:00:14]}
21. hxg5 {[%clk 0:01:09.8]} 21... fxg5 {[%clk 0:00:13.8]} 22. Bxe5 {[%clk
0:01:02.8]} 22... Rad8 {[%clk 0:00:11.5]} 23. Nd4 {[%clk 0:01:02.5]} 23... Bd7
{[%clk 0:00:06.4]} 24. Rh1 {[%clk 0:00:57.8]} 24... Kh7 {[%clk 0:00:04.2]} 25.
Qxg5 {[%clk 0:00:55.7]} 1-0

[Event "*** SCC Grand Prix: Titled Tuesday Blitz"]
[Site "Chess.com"]
[Date "2020.08.04"]
[Round "6"]
[White "51616516516"]
[Black "rududuyk"]
[Result "0-1"]
[WhiteElo "2242"]
[BlackElo "2079"]
[TimeControl "180+1"]
[EndTime "14:49:39 PDT"]
[Termination "rududuyk won on time"]

1. d4 {[%clk 0:03:00.9]} 1... e6 {[%clk 0:02:59.8]} 2. c4 {[%clk 0:02:54.1]}
2... f5 {[%clk 0:02:59.5]} 3. Nf3 {[%clk 0:02:50.5]} 3... Nf6 {[%clk 0:02:59.7]}
4. g3 {[%clk 0:02:50.9]} 4... Be7 {[%clk 0:02:57.7]} 5. Bg2 {[%clk 0:02:51.2]}
5... O-O {[%clk 0:02:57.3]} 6. O-O {[%clk 0:02:51.6]} 6... d6 {[%clk 0:02:56.7]}
7. Nc3 {[%clk 0:02:49.8]} 7... Ne4 {[%clk 0:02:56.5]} 8. Qc2 {[%clk 0:02:48.3]}
8... Nxc3 {[%clk 0:02:55.4]} 9. Qxc3 {[%clk 0:02:47.7]} 9... a5 {[%clk
0:02:55.1]} 10. Qc2 {[%clk 0:02:39.6]} 10... Nc6 {[%clk 0:02:52.2]} 11. e4
{[%clk 0:02:35.3]} 11... e5 {[%clk 0:02:47.7]} 12. dxe5 {[%clk 0:02:15]} 12...
dxe5 {[%clk 0:02:46.1]} 13. Rd1 {[%clk 0:02:13.7]} 13... Qe8 {[%clk 0:02:44.4]}
14. Bg5 {[%clk 0:01:12.6]} 14... Bc5 {[%clk 0:02:28.4]} 15. Rd5 {[%clk
0:00:36.7]} 15... Nb4 {[%clk 0:02:24.2]} 16. Qd2 {[%clk 0:00:35.2]} 16... Bd6
{[%clk 0:02:01.6]} 17. exf5 {[%clk 0:00:13.8]} 17... Nxd5 {[%clk 0:01:51.6]} 18.
Qxd5+ {[%clk 0:00:14.7]} 18... Kh8 {[%clk 0:01:51.5]} 19. Nh4 {[%clk 0:00:10]}
19... Qh5 {[%clk 0:01:26.4]} 20. Be3 {[%clk 0:00:06.2]} 20... Bxf5 {[%clk
0:01:21.1]} 21. Nxf5 {[%clk 0:00:05.4]} 21... Qxf5 {[%clk 0:01:20.7]} 22. c5
{[%clk 0:00:05.5]} 22... Be7 {[%clk 0:01:11.6]} 23. Qxb7 {[%clk 0:00:05.3]}
23... Rab8 {[%clk 0:01:09.3]} 24. Qxc7 {[%clk 0:00:05.3]} 24... Bg5 {[%clk
0:01:08.4]} 25. Bxg5 {[%clk 0:00:02.1]} 25... Qxg5 {[%clk 0:01:09]} 26. Rf1
{[%clk 0:00:01.1]} 26... Rxb2 {[%clk 0:01:07.7]} 27. Qd6 {[%clk 0:00:02]} 27...
Qf5 {[%clk 0:01:05.9]} 28. c6 {[%clk 0:00:02.1]} 28... Rxf2 {[%clk 0:01:04.9]}
29. Re1 {[%clk 0:00:01.4]} 29... Qc2 {[%clk 0:01:02.6]} 0-1

[Event "*** SCC Grand Prix: Titled Tuesday Blitz"]
[Site "Chess.com"]
[Date "2020.08.04"]
[Round "6"]
[White "Zkid"]
[Black "Beca95"]
[Result "1-0"]
[WhiteElo "2818"]
[BlackElo "2877"]
[TimeControl "180+1"]
[EndTime "14:49:42 PDT"]
[Termination "Zkid won by resignation"]

1. e4 {[%clk 0:03:00.9]} 1... c5 {[%clk 0:02:59.7]} 2. Nf3 {[%clk 0:02:58.7]}
2... d6 {[%clk 0:03:00]} 3. d4 {[%clk 0:02:58.3]} 3... cxd4 {[%clk 0:03:00.9]}
4. Nxd4 {[%clk 0:02:59]} 4... Nf6 {[%clk 0:03:01.1]} 5. f3 {[%clk 0:02:59.3]}
5... e5 {[%clk 0:03:00.2]} 6. Nb3 {[%clk 0:02:58.8]} 6... Be6 {[%clk 0:03:00.5]}
7. c4 {[%clk 0:02:57.5]} 7... Nbd7 {[%clk 0:03:00.5]} 8. Nc3 {[%clk 0:02:57.6]}
8... Be7 {[%clk 0:02:57.7]} 9. Be3 {[%clk 0:02:57.4]} 9... O-O {[%clk
0:02:55.9]} 10. Be2 {[%clk 0:02:54.8]} 10... a5 {[%clk 0:02:56.2]} 11. a4 {[%clk
0:02:49.2]} 11... Nb6 {[%clk 0:02:48.5]} 12. Nd5 {[%clk 0:02:42.1]} 12... Nbxd5
{[%clk 0:02:30.2]} 13. cxd5 {[%clk 0:02:39.3]} 13... Bd7 {[%clk 0:02:30.3]} 14.
O-O {[%clk 0:02:37.7]} 14... Qb8 {[%clk 0:02:30.3]} 15. Bb5 {[%clk 0:02:35]}
15... Bxb5 {[%clk 0:02:19.6]} 16. axb5 {[%clk 0:02:35.9]} 16... a4 {[%clk
0:02:18.3]} 17. Nd2 {[%clk 0:02:34.4]} 17... Qe8 {[%clk 0:02:17]} 18. Qe2 {[%clk
0:02:28.3]} 18... Ra5 {[%clk 0:02:15.1]} 19. b6 {[%clk 0:02:08.1]} 19... Nd7
{[%clk 0:02:07.4]} 20. Rfc1 {[%clk 0:02:01.1]} 20... Nc5 {[%clk 0:01:32.7]} 21.
b4 {[%clk 0:01:56.4]} 21... Rb5 {[%clk 0:00:30.2]} 22. bxc5 {[%clk 0:01:52.9]}
22... dxc5 {[%clk 0:00:31.1]} 23. Rxa4 {[%clk 0:01:35.6]} 23... Rxb6 {[%clk
0:00:31.1]} 24. Rac4 {[%clk 0:01:35.7]} 24... Rb2 {[%clk 0:00:29.9]} 25. Bxc5
{[%clk 0:01:33.4]} 25... Bxc5+ {[%clk 0:00:30]} 26. Rxc5 {[%clk 0:01:33.6]}
26... Qe7 {[%clk 0:00:30.6]} 27. Qe3 {[%clk 0:01:27]} 27... h5 {[%clk
0:00:29.4]} 28. d6 {[%clk 0:01:16.1]} 28... Qe6 {[%clk 0:00:27.1]} 29. Nc4
{[%clk 0:01:12.3]} 29... Ra2 {[%clk 0:00:27.4]} 30. Rxe5 {[%clk 0:01:10.5]}
30... Qg6 {[%clk 0:00:27.5]} 31. Qg5 {[%clk 0:01:06.2]} 31... Qxg5 {[%clk
0:00:13.5]} 32. Rxg5 {[%clk 0:01:07.1]} 32... Rc8 {[%clk 0:00:13.7]} 33. d7
{[%clk 0:01:04.4]} 33... Rd8 {[%clk 0:00:13.2]} 34. Nb6 {[%clk 0:01:04.5]} 34...
Kf8 {[%clk 0:00:13.2]} 35. Rc8 {[%clk 0:01:03.4]} 35... Ke7 {[%clk 0:00:13.6]}
36. Re5+ {[%clk 0:01:02.8]} 1-0

[Event "*** SCC Grand Prix: Titled Tuesday Blitz"]
[Site "Chess.com"]
[Date "2020.08.04"]
[Round "6"]
[White "Keithonsky"]
[Black "GigaQuparadze"]
[Result "0-1"]
[WhiteElo "2560"]
[BlackElo "2923"]
[TimeControl "180+1"]
[EndTime "14:49:43 PDT"]
[Termination "GigaQuparadze won by resignation"]

1. d4 {[%clk 0:03:00.9]} 1... Nf6 {[%clk 0:02:59.9]} 2. c4 {[%clk 0:03:01.3]}
2... e6 {[%clk 0:03:00.8]} 3. Nf3 {[%clk 0:03:00.9]} 3... b6 {[%clk 0:03:00.6]}
4. g3 {[%clk 0:03:00.8]} 4... Bb4+ {[%clk 0:02:59.5]} 5. Bd2 {[%clk 0:03:00.2]}
5... c5 {[%clk 0:02:59.7]} 6. Bxb4 {[%clk 0:02:59.7]} 6... cxb4 {[%clk
0:03:00.6]} 7. a3 {[%clk 0:03:00.6]} 7... bxa3 {[%clk 0:03:00.5]} 8. Nxa3 {[%clk
0:03:01.5]} 8... O-O {[%clk 0:03:00.1]} 9. Bg2 {[%clk 0:03:01.9]} 9... Bb7
{[%clk 0:03:00.5]} 10. O-O {[%clk 0:03:02.4]} 10... a5 {[%clk 0:03:01]} 11. Nb5
{[%clk 0:02:56]} 11... Na6 {[%clk 0:03:00]} 12. Qb3 {[%clk 0:02:48.4]} 12... Nb4
{[%clk 0:02:50.9]} 13. Rfc1 {[%clk 0:02:44.4]} 13... d5 {[%clk 0:02:48.4]} 14.
c5 {[%clk 0:02:42.3]} 14... Ba6 {[%clk 0:02:48.7]} 15. Nc3 {[%clk 0:02:34.7]}
15... bxc5 {[%clk 0:02:36.8]} 16. dxc5 {[%clk 0:02:35.6]} 16... Rc8 {[%clk
0:02:36.8]} 17. Qa3 {[%clk 0:02:24.4]} 17... Rxc5 {[%clk 0:02:25.3]} 18. Nd4
{[%clk 0:02:24]} 18... Qb6 {[%clk 0:02:19.5]} 19. Nb3 {[%clk 0:02:22.1]} 19...
Rc7 {[%clk 0:02:14.4]} 20. Qxa5 {[%clk 0:02:20]} 20... Qxa5 {[%clk 0:02:14.3]}
21. Nxa5 {[%clk 0:02:19.3]} 21... Rfc8 {[%clk 0:02:09.7]} 22. e3 {[%clk
0:02:18.1]} 22... h6 {[%clk 0:02:02.6]} 23. Nb3 {[%clk 0:02:13.7]} 23... Bc4
{[%clk 0:02:00]} 24. Nd4 {[%clk 0:02:07.7]} 24... Nd3 {[%clk 0:01:58.6]} 25.
Rcb1 {[%clk 0:02:07.8]} 25... Rb8 {[%clk 0:01:58.2]} 26. Bf1 {[%clk 0:02:03.7]}
26... Ne5 {[%clk 0:01:50.3]} 27. Ncb5 {[%clk 0:01:50.8]} 27... Rcb7 {[%clk
0:01:47.4]} 28. f4 {[%clk 0:01:30.4]} 28... Bxf1 {[%clk 0:01:45.8]} 29. fxe5
{[%clk 0:01:30.3]} 29... Bxb5 {[%clk 0:01:45.7]} 30. exf6 {[%clk 0:01:27.6]}
30... gxf6 {[%clk 0:01:46.6]} 31. b3 {[%clk 0:01:21.9]} 31... Kg7 {[%clk
0:01:45.6]} 32. Rc1 {[%clk 0:01:21.1]} 32... Bd3 {[%clk 0:01:45.5]} 33. Rc3
{[%clk 0:01:21.2]} 33... Be4 {[%clk 0:01:45.5]} 34. Ra3 {[%clk 0:01:19.6]} 34...
e5 {[%clk 0:01:44.8]} 35. Ne2 {[%clk 0:01:12.5]} 35... Rb4 {[%clk 0:01:42.7]}
36. Kf2 {[%clk 0:01:12.3]} 36... d4 {[%clk 0:01:42.3]} 37. exd4 {[%clk
0:01:12.5]} 37... exd4 {[%clk 0:01:43.2]} 38. Rc4 {[%clk 0:01:13.4]} 38... d3
{[%clk 0:01:43.1]} 39. Nc3 {[%clk 0:01:10.6]} 39... Bg6 {[%clk 0:01:40.2]} 40.
Rxb4 {[%clk 0:01:08.9]} 40... Rxb4 {[%clk 0:01:41.1]} 41. Ke3 {[%clk 0:01:09.8]}
41... h5 {[%clk 0:01:41.4]} 42. Kd2 {[%clk 0:01:07.2]} 42... h4 {[%clk
0:01:41.6]} 43. Nd5 {[%clk 0:01:05.4]} 43... Rg4 {[%clk 0:01:35.9]} 44. Nf4
{[%clk 0:00:58]} 44... hxg3 {[%clk 0:01:35.3]} 45. hxg3 {[%clk 0:00:58.9]} 45...
Rxg3 {[%clk 0:01:34.1]} 46. Nxg6 {[%clk 0:00:59.2]} 46... fxg6 {[%clk
0:01:33.5]} 47. b4 {[%clk 0:00:57.8]} 47... Rg2+ {[%clk 0:01:33.5]} 48. Ke3
{[%clk 0:00:55.6]} 48... Rb2 {[%clk 0:01:30.8]} 49. Ra7+ {[%clk 0:00:52.2]}
49... Kh6 {[%clk 0:01:30.5]} 50. Rb7 {[%clk 0:00:53.1]} 50... d2 {[%clk
0:01:30.2]} 51. Ke2 {[%clk 0:00:52.6]} 51... g5 {[%clk 0:01:29.6]} 52. b5 {[%clk
0:00:52.7]} 52... g4 {[%clk 0:01:27.9]} 53. Rb8 {[%clk 0:00:53.6]} 53... Kg5
{[%clk 0:01:27.6]} 54. b6 {[%clk 0:00:53.7]} 54... Kf4 {[%clk 0:01:27.9]} 55. b7
{[%clk 0:00:54.6]} 55... f5 {[%clk 0:01:28.3]} 56. Kd3 {[%clk 0:00:50.6]} 56...
d1=Q+ {[%clk 0:01:27.6]} 0-1

[Event "*** SCC Grand Prix: Titled Tuesday Blitz"]
[Site "Chess.com"]
[Date "2020.08.04"]
[Round "6"]
[White "davigator"]
[Black "arminmusovic"]
[Result "0-1"]
[WhiteElo "2281"]
[BlackElo "2502"]
[TimeControl "180+1"]
[EndTime "14:49:59 PDT"]
[Termination "arminmusovic won by resignation"]

1. e4 {[%clk 0:03:00.9]} 1... c6 {[%clk 0:02:59.7]} 2. d4 {[%clk 0:02:59.6]}
2... d5 {[%clk 0:03:00.6]} 3. e5 {[%clk 0:02:59.5]} 3... c5 {[%clk 0:03:00.8]}
4. dxc5 {[%clk 0:02:58.2]} 4... Nc6 {[%clk 0:03:01.3]} 5. c3 {[%clk 0:02:54.9]}
5... Nh6 {[%clk 0:02:57.3]} 6. Bb5 {[%clk 0:02:45.7]} 6... e6 {[%clk 0:02:54.6]}
7. Nf3 {[%clk 0:02:44.9]} 7... Bxc5 {[%clk 0:02:54.1]} 8. O-O {[%clk 0:02:43.7]}
8... Nf5 {[%clk 0:02:52.4]} 9. b4 {[%clk 0:02:37.8]} 9... Be7 {[%clk 0:02:47.1]}
10. a4 {[%clk 0:02:36.5]} 10... a6 {[%clk 0:02:46.5]} 11. Bd3 {[%clk 0:02:35.4]}
11... g6 {[%clk 0:02:43.2]} 12. Nbd2 {[%clk 0:02:19.6]} 12... f6 {[%clk
0:02:34.9]} 13. b5 {[%clk 0:02:08.9]} 13... Nxe5 {[%clk 0:02:31.6]} 14. Nxe5
{[%clk 0:02:05.3]} 14... fxe5 {[%clk 0:02:32.5]} 15. Re1 {[%clk 0:02:02.5]}
15... e4 {[%clk 0:02:32.4]} 16. Bf1 {[%clk 0:02:02.3]} 16... O-O {[%clk
0:02:30.4]} 17. c4 {[%clk 0:02:01.7]} 17... Bc5 {[%clk 0:02:24.3]} 18. Nb3
{[%clk 0:01:57.5]} 18... Ba7 {[%clk 0:02:03]} 19. c5 {[%clk 0:01:54.4]} 19...
Bb8 {[%clk 0:02:01.5]} 20. g3 {[%clk 0:01:48.5]} 20... Nh4 {[%clk 0:01:50.1]}
21. Bg2 {[%clk 0:01:36.4]} 21... Nxg2 {[%clk 0:01:34.1]} 22. Kxg2 {[%clk
0:01:36]} 22... axb5 {[%clk 0:01:34.1]} 23. axb5 {[%clk 0:01:35.7]} 23... Rxa1
{[%clk 0:01:34.7]} 24. Nxa1 {[%clk 0:01:36.4]} 24... Qf6 {[%clk 0:01:35.3]} 25.
Be3 {[%clk 0:01:34.3]} 25... Qf5 {[%clk 0:01:19.1]} 26. h3 {[%clk 0:01:25.7]}
26... e5 {[%clk 0:01:12]} 27. g4 {[%clk 0:01:25.9]} 27... Qf3+ {[%clk
0:01:09.3]} 28. Qxf3 {[%clk 0:01:26]} 28... exf3+ {[%clk 0:01:08.8]} 29. Kg1
{[%clk 0:01:26.3]} 29... h5 {[%clk 0:01:07.2]} 30. Bh6 {[%clk 0:01:12]} 30...
Rf7 {[%clk 0:00:58.9]} 31. Nc2 {[%clk 0:01:01.9]} 31... hxg4 {[%clk 0:00:55.6]}
32. hxg4 {[%clk 0:01:01.3]} 32... Bxg4 {[%clk 0:00:55.7]} 33. Ne3 {[%clk
0:01:02]} 33... Be6 {[%clk 0:00:56]} 34. Ra1 {[%clk 0:00:58.7]} 34... Kh7 {[%clk
0:00:50.1]} 35. Ra8 {[%clk 0:00:57.8]} 35... Kxh6 {[%clk 0:00:47.1]} 36. Rxb8
{[%clk 0:00:56.9]} 36... d4 {[%clk 0:00:47.8]} 37. Nf1 {[%clk 0:00:54.6]} 37...
Bd5 {[%clk 0:00:32.5]} 38. Rd8 {[%clk 0:00:43.8]} 38... Bc4 {[%clk 0:00:32.5]}
39. c6 {[%clk 0:00:42.6]} 39... Bxb5 {[%clk 0:00:30.7]} 40. cxb7 {[%clk
0:00:41.1]} 40... Rxb7 {[%clk 0:00:31.6]} 41. Rd7 {[%clk 0:00:38.8]} 41... Rxd7
{[%clk 0:00:30.9]} 0-1